[Event "Titled Tuesday Blitz March 29 Late 2022"]
[White "Van Foreest, Jorden"]
[Black "Lewicki, Miroslaw"]
[WhiteFideId "1039784"]
[BlackFideId "1113380"]
[WhiteElo "2609"]
[BlackElo "2283"]
[Result "1-0"]
[Round "03"]
[TimeControl "180+1"]
[Date "2022.03.29"]
[WhiteClock "0:00:01"]
[BlackClock "0:00:04"]

1. g4 {[%clk 0:03:00]}  e5 {[%clk 0:02:58]} 2. Bg2 {[%clk 0:03:00]}  Nc6 {[%clk 0:02:57]} 3. h3 {[%clk 0:03:01]}  d6 {[%clk 0:02:57]} 4. d3 {[%clk 0:03:01]}  Nf6 {[%clk 0:02:55]} 5. e3 {[%clk 0:03:01]}  Be7 {[%clk 0:02:55]} 6. Ne2 {[%clk 0:03:02]}  O-O {[%clk 0:02:56]} 7. Ng3 {[%clk 0:03:02]}  d5 {[%clk 0:02:54]} 8. g5 {[%clk 0:03:00]}  Ne8 {[%clk 0:02:54]} 9. h4 {[%clk 0:03:01]}  Be6 {[%clk 0:02:52]} 10. b3 {[%clk 0:02:59]}  Nd6 {[%clk 0:02:52]} 11. Bb2 {[%clk 0:02:59]}  Nf5 {[%clk 0:02:46]} 12. Nxf5 {[%clk 0:02:58]}  Bxf5 {[%clk 0:02:47]} 13. Nd2 {[%clk 0:02:59]}  Qd7 {[%clk 0:02:46]} 14. Qe2 {[%clk 0:02:47]}  a5 {[%clk 0:02:45]} 15. a3 {[%clk 0:02:46]}  b5 {[%clk 0:02:17]} 16. O-O {[%clk 0:02:39]}  Bc5 {[%clk 0:02:06]} 17. e4 {[%clk 0:02:36]}  Be6 {[%clk 0:02:03]} 18. exd5 {[%clk 0:02:35]}  Bxd5 {[%clk 0:02:04]} 19. Ne4 {[%clk 0:02:23]}  Bb6 {[%clk 0:02:01]} 20. c4 {[%clk 0:02:18]}  Be6 {[%clk 0:01:36]} 21. c5 {[%clk 0:02:18]}  Ba7 {[%clk 0:01:36]} 22. Rac1 {[%clk 0:02:16]}  Bxb3 {[%clk 0:01:34]} 23. f4 {[%clk 0:02:12]}  exf4 {[%clk 0:01:32]} 24. Rxf4 {[%clk 0:02:13]}  Rae8 {[%clk 0:01:27]} 25. h5 {[%clk 0:01:36]}  Bd5 {[%clk 0:01:00]} 26. h6 {[%clk 0:01:34]}  Bxe4 {[%clk 0:00:59]} 27. hxg7 {[%clk 0:01:35]}  Bxg2 {[%clk 0:00:38]} 28. Qxg2 {[%clk 0:01:34]}  Ne5 {[%clk 0:00:38]} 29. gxf8=Q+ {[%clk 0:01:30]}  Kxf8 {[%clk 0:00:38]} 30. Rcf1 {[%clk 0:00:42]}  Bxc5+ {[%clk 0:00:17]} 31. Kh1 {[%clk 0:00:43]}  Bd6 {[%clk 0:00:05]} 32. Qh2 {[%clk 0:00:32]}  Kg8 {[%clk 0:00:04]} 33. Qh5 {[%clk 0:00:18]}  Re6 {[%clk 0:00:02]} 34. Bxe5 {[%clk 0:00:16]}  Bxe5 {[%clk 0:00:03]} 35. Rxf7 {[%clk 0:00:16]}  Qd5+ {[%clk 0:00:04]} 36. R1f3 {[%clk 0:00:16]}  Re8 {[%clk 0:00:04]} 37. Qxh7# {[%clk 0:00:01]} 1-0


[Site "https://www.chess.com"]

[Event "Titled Tuesday Blitz March 29 Late 2022"]
[White "Van den Dikkenberg, Erik"]
[Black "Galego, Luis"]
[WhiteFideId "1005880"]
[BlackFideId "1900072"]
[WhiteElo "2118"]
[BlackElo "2516"]
[Result "0-1"]
[Round "03"]
[TimeControl "180+1"]
[Date "2022.03.30"]
[WhiteClock "0:00:27"]
[BlackClock "0:00:25"]

1. e4 {[%clk 0:03:00]}  c5 {[%clk 0:02:55]} 2. Nc3 {[%clk 0:03:00]}  Nc6 {[%clk 0:02:56]} 3. f4 {[%clk 0:03:00]}  e6 {[%clk 0:02:55]} 4. Nf3 {[%clk 0:03:00]}  d5 {[%clk 0:02:49]} 5. Bb5 {[%clk 0:02:59]}  Ne7 {[%clk 0:02:46]} 6. O-O {[%clk 0:02:57]}  a6 {[%clk 0:02:40]} 7. Bxc6+ {[%clk 0:02:57]}  Nxc6 {[%clk 0:02:35]} 8. d3 {[%clk 0:02:57]}  Be7 {[%clk 0:02:34]} 9. Kh1 {[%clk 0:02:55]}  b5 {[%clk 0:02:21]} 10. Qe1 {[%clk 0:02:54]}  Bb7 {[%clk 0:02:12]} 11. e5 {[%clk 0:02:52]}  Rc8 {[%clk 0:02:06]} 12. Qg3 {[%clk 0:02:52]}  g6 {[%clk 0:02:04]} 13. f5 {[%clk 0:02:48]}  exf5 {[%clk 0:02:02]} 14. e6 {[%clk 0:02:48]}  fxe6 {[%clk 0:02:01]} 15. Bg5 {[%clk 0:02:45]}  O-O {[%clk 0:01:56]} 16. Rae1 {[%clk 0:02:44]}  Bxg5 {[%clk 0:01:44]} 17. Nxg5 {[%clk 0:02:43]}  Nd4 {[%clk 0:01:44]} 18. Nxe6 {[%clk 0:02:10]}  Nxe6 {[%clk 0:01:43]} 19. Rxe6 {[%clk 0:02:10]}  d4 {[%clk 0:01:43]} 20. Rxg6+ {[%clk 0:02:08]}  Kh8 {[%clk 0:01:43]} 21. Rg7 {[%clk 0:02:05]}  Rg8 {[%clk 0:01:11]} 22. Rxg8+ {[%clk 0:01:58]}  Qxg8 {[%clk 0:01:11]} 23. Qe5+ {[%clk 0:01:58]}  Qg7 {[%clk 0:01:11]} 24. Qxg7+ {[%clk 0:01:37]}  Kxg7 {[%clk 0:01:12]} 25. Ne2 {[%clk 0:01:37]}  Re8 {[%clk 0:01:11]} 26. Nf4 {[%clk 0:01:37]}  Kf6 {[%clk 0:01:04]} 27. h3 {[%clk 0:01:34]}  Kg5 {[%clk 0:01:01]} 28. Kh2 {[%clk 0:01:34]}  Re3 {[%clk 0:01:00]} 29. Rf2 {[%clk 0:01:31]}  c4 {[%clk 0:00:59]} 30. g3 {[%clk 0:01:26]}  Re1 {[%clk 0:00:58]} 31. h4+ {[%clk 0:01:26]}  Kg4 {[%clk 0:00:58]} 32. Ng2 {[%clk 0:01:25]}  Re5 {[%clk 0:00:44]} 33. Rf4+ {[%clk 0:01:22]}  Kh5 {[%clk 0:00:44]} 34. Rf2 {[%clk 0:01:19]}  c3 {[%clk 0:00:41]} 35. bxc3 {[%clk 0:01:14]}  dxc3 {[%clk 0:00:41]} 36. Nf4+ {[%clk 0:01:15]}  Kg4 {[%clk 0:00:41]} 37. Nh3 {[%clk 0:01:11]}  Bf3 {[%clk 0:00:35]} 38. Ng5 {[%clk 0:01:06]}  Re3 {[%clk 0:00:34]} 39. a3 {[%clk 0:00:53]}  a5 {[%clk 0:00:33]} 40. Nf7 {[%clk 0:00:52]}  f4 {[%clk 0:00:28]} 41. gxf4 {[%clk 0:00:47]}  Kxf4 {[%clk 0:00:28]} 42. Ng5 {[%clk 0:00:47]}  b4 {[%clk 0:00:28]} 43. axb4 {[%clk 0:00:46]}  axb4 {[%clk 0:00:28]} 44. Nh3+ {[%clk 0:00:46]}  Kg4 {[%clk 0:00:27]} 45. Ng5 {[%clk 0:00:45]}  h6 {[%clk 0:00:27]} 46. Nh3 {[%clk 0:00:44]}  Kxh4 {[%clk 0:00:26]} 47. Ng1 {[%clk 0:00:43]}  Kg4 {[%clk 0:00:26]} 48. Nxf3 {[%clk 0:00:38]}  Rxf3 {[%clk 0:00:26]} 49. Rg2+ {[%clk 0:00:38]}  Kf4 {[%clk 0:00:27]} 50. Rg6 {[%clk 0:00:38]}  Ke3 {[%clk 0:00:27]} 51. Rb6 {[%clk 0:00:37]}  Rf4 {[%clk 0:00:26]} 52. Kg3 {[%clk 0:00:33]}  Rd4 {[%clk 0:00:27]} 53. Rxh6 {[%clk 0:00:32]}  b3 {[%clk 0:00:25]} 54. cxb3 {[%clk 0:00:31]}  c2 {[%clk 0:00:25]} 55. Rc6 {[%clk 0:00:31]}  Kd2 {[%clk 0:00:25]} 56. Kf2 {[%clk 0:00:28]}  Rxd3 {[%clk 0:00:25]} 57. b4 {[%clk 0:00:27]}  c1=Q {[%clk 0:00:25]} 0-1


[Site "https://www.chess.com"]

[Event "Titled Tuesday Blitz March 29 Late 2022"]
[White "Vusatiuk, Vladimir"]
[Black "Smirnov, Pavel"]
[WhiteFideId "14118610"]
[BlackFideId "4123425"]
[WhiteElo "2157"]
[BlackElo "2545"]
[Result "0-1"]
[Round "03"]
[TimeControl "180+1"]
[Date "2022.03.30"]
[WhiteClock "0:00:02"]
[BlackClock "0:01:27"]

1. d4 {[%clk 0:02:59]}  Nf6 {[%clk 0:02:59]} 2. c4 {[%clk 0:02:59]}  e6 {[%clk 0:03:00]} 3. Nc3 {[%clk 0:03:00]}  Bb4 {[%clk 0:03:01]} 4. e3 {[%clk 0:03:00]}  O-O {[%clk 0:03:00]} 5. Nf3 {[%clk 0:02:59]}  d5 {[%clk 0:03:00]} 6. Bd2 {[%clk 0:02:59]}  b6 {[%clk 0:02:59]} 7. cxd5 {[%clk 0:02:59]}  exd5 {[%clk 0:02:59]} 8. Rc1 {[%clk 0:02:59]}  Bb7 {[%clk 0:02:59]} 9. Bd3 {[%clk 0:02:58]}  a6 {[%clk 0:02:58]} 10. O-O {[%clk 0:02:57]}  Bd6 {[%clk 0:02:59]} 11. Ne5 {[%clk 0:02:58]}  c5 {[%clk 0:02:59]} 12. f4 {[%clk 0:02:53]}  Nc6 {[%clk 0:02:58]} 13. Be1 {[%clk 0:02:50]}  cxd4 {[%clk 0:02:57]} 14. Nxc6 {[%clk 0:02:49]}  Bxc6 {[%clk 0:02:57]} 15. Ne2 {[%clk 0:02:49]}  Bb7 {[%clk 0:02:52]} 16. Nxd4 {[%clk 0:02:49]}  Bc5 {[%clk 0:02:49]} 17. Bh4 {[%clk 0:02:36]}  Re8 {[%clk 0:02:45]} 18. Qf3 {[%clk 0:02:05]}  Qe7 {[%clk 0:02:37]} 19. Nf5 {[%clk 0:01:44]}  Qe6 {[%clk 0:02:34]} 20. Qg3 {[%clk 0:01:29]}  g6 {[%clk 0:02:32]} 21. Rce1 {[%clk 0:01:15]}  Nh5 {[%clk 0:02:19]} 22. Qg5 {[%clk 0:01:14]}  f6 {[%clk 0:02:14]} 23. Qg4 {[%clk 0:01:09]}  Kh8 {[%clk 0:02:07]} 24. Kh1 {[%clk 0:01:02]}  Ng7 {[%clk 0:02:01]} 25. Nh6 {[%clk 0:00:59]}  f5 {[%clk 0:02:01]} 26. Qh3 {[%clk 0:00:51]}  Bxe3 {[%clk 0:01:52]} 27. Nf7+ {[%clk 0:00:21]}  Qxf7 {[%clk 0:01:50]} 28. Rxe3 {[%clk 0:00:21]}  d4 {[%clk 0:01:50]} 29. Re5 {[%clk 0:00:18]}  Kg8 {[%clk 0:01:42]} 30. Rfe1 {[%clk 0:00:18]}  Rxe5 {[%clk 0:01:41]} 31. fxe5 {[%clk 0:00:19]}  Qxa2 {[%clk 0:01:40]} 32. Bf6 {[%clk 0:00:17]}  Qd5 {[%clk 0:01:35]} 33. b3 {[%clk 0:00:13]}  b5 {[%clk 0:01:35]} 34. Qh6 {[%clk 0:00:04]}  Ne6 {[%clk 0:01:32]} 35. Qh3 {[%clk 0:00:03]}  Nf4 {[%clk 0:01:31]} 36. Qg3 {[%clk 0:00:02]}  Nxd3 {[%clk 0:01:30]} 37. Rd1 {[%clk 0:00:03]}  f4 {[%clk 0:01:27]} 38. Qh3 {[%clk 0:00:02]}  Nf2+ {[%clk 0:01:27]} 39. Kg1 {[%clk 0:00:02]} 0-1


[Site "https://www.chess.com"]

[Event "Titled Tuesday Blitz March 29 Late 2022"]
[White "Zivkovic, Nemanja"]
[Black "Petrova, Irina"]
[WhiteFideId "942154"]
[BlackFideId "14124122"]
[WhiteElo "2388"]
[BlackElo "1993"]
[Result "1/2-1/2"]
[Round "03"]
[TimeControl "180+1"]
[Date "2022.03.30"]
[WhiteClock "0:00:17"]
[BlackClock "0:00:06"]

1. e4 {[%clk 0:03:00]}  d6 {[%clk 0:03:00]} 2. d4 {[%clk 0:03:00]}  Nf6 {[%clk 0:03:01]} 3. Nc3 {[%clk 0:03:00]}  e5 {[%clk 0:03:01]} 4. Nf3 {[%clk 0:03:00]}  Nbd7 {[%clk 0:03:01]} 5. Bc4 {[%clk 0:03:00]}  Be7 {[%clk 0:03:01]} 6. O-O {[%clk 0:03:00]}  O-O {[%clk 0:03:01]} 7. Re1 {[%clk 0:03:01]}  c6 {[%clk 0:03:01]} 8. a4 {[%clk 0:03:01]}  h6 {[%clk 0:03:01]} 9. h3 {[%clk 0:02:58]}  Re8 {[%clk 0:03:01]} 10. Ba2 {[%clk 0:02:56]}  Bf8 {[%clk 0:03:01]} 11. dxe5 {[%clk 0:02:39]}  Nxe5 {[%clk 0:02:58]} 12. Nd4 {[%clk 0:02:34]}  Qc7 {[%clk 0:02:44]} 13. a5 {[%clk 0:02:28]}  Bd7 {[%clk 0:02:34]} 14. Be3 {[%clk 0:02:28]}  b5 {[%clk 0:02:32]} 15. axb6 {[%clk 0:02:26]}  axb6 {[%clk 0:02:33]} 16. f4 {[%clk 0:02:25]}  Ng6 {[%clk 0:02:32]} 17. Qf3 {[%clk 0:02:21]}  b5 {[%clk 0:02:12]} 18. b4 {[%clk 0:02:12]}  Ra3 {[%clk 0:01:56]} 19. Bb3 {[%clk 0:02:09]}  Rxa1 {[%clk 0:01:42]} 20. Rxa1 {[%clk 0:02:10]}  c5 {[%clk 0:01:40]} 21. Ndxb5 {[%clk 0:02:00]}  Bxb5 {[%clk 0:01:38]} 22. Nxb5 {[%clk 0:02:00]}  Qb7 {[%clk 0:01:36]} 23. Ra7 {[%clk 0:01:56]}  Qxb5 {[%clk 0:01:35]} 24. Bxf7+ {[%clk 0:01:55]}  Kh7 {[%clk 0:01:31]} 25. Bxe8 {[%clk 0:01:47]}  Nxe8 {[%clk 0:01:27]} 26. bxc5 {[%clk 0:01:47]}  dxc5 {[%clk 0:01:25]} 27. e5 {[%clk 0:01:45]}  Qb1+ {[%clk 0:01:23]} 28. Kh2 {[%clk 0:01:34]}  Qxc2 {[%clk 0:01:23]} 29. Ra8 {[%clk 0:01:09]}  Nc7 {[%clk 0:01:22]} 30. Rc8 {[%clk 0:01:09]}  Ne6 {[%clk 0:00:57]} 31. f5 {[%clk 0:01:00]}  Nxe5 {[%clk 0:00:57]} 32. Qf1 {[%clk 0:00:47]}  Bd6 {[%clk 0:00:55]} 33. Kh1 {[%clk 0:00:22]}  Ng5 {[%clk 0:00:50]} 34. Bxg5 {[%clk 0:00:20]}  hxg5 {[%clk 0:00:51]} 35. f6 {[%clk 0:00:20]}  gxf6 {[%clk 0:00:41]} 36. Rd8 {[%clk 0:00:18]}  Qd2 {[%clk 0:00:33]} 37. Kg1 {[%clk 0:00:12]}  c4 {[%clk 0:00:32]} 38. Qf5+ {[%clk 0:00:12]}  Kg7 {[%clk 0:00:30]} 39. Ra8 {[%clk 0:00:08]}  Qd1+ {[%clk 0:00:29]} 40. Kf2 {[%clk 0:00:07]}  Nd3+ {[%clk 0:00:28]} 41. Ke3 {[%clk 0:00:08]}  Bc5+ {[%clk 0:00:28]} 42. Ke4 {[%clk 0:00:08]}  Qe2+ {[%clk 0:00:27]} 43. Kd5 {[%clk 0:00:08]}  Qe5+ {[%clk 0:00:25]} 44. Qxe5 {[%clk 0:00:08]}  fxe5 {[%clk 0:00:26]} 45. Kxc4 {[%clk 0:00:08]}  e4 {[%clk 0:00:25]} 46. Re8 {[%clk 0:00:06]}  Bf8 {[%clk 0:00:21]} 47. Rxe4 {[%clk 0:00:05]}  Nf4 {[%clk 0:00:21]} 48. g3 {[%clk 0:00:03]}  Nxh3 {[%clk 0:00:20]} 49. Kd5 {[%clk 0:00:04]}  Kg6 {[%clk 0:00:19]} 50. Re2 {[%clk 0:00:04]}  Ng1 {[%clk 0:00:18]} 51. Rf2 {[%clk 0:00:04]}  Bg7 {[%clk 0:00:17]} 52. Ke4 {[%clk 0:00:04]}  Nh3 {[%clk 0:00:16]} 53. Rh2 {[%clk 0:00:04]}  g4 {[%clk 0:00:16]} 54. Rc2 {[%clk 0:00:04]}  Bf6 {[%clk 0:00:16]} 55. Rc6 {[%clk 0:00:05]}  Ng5+ {[%clk 0:00:16]} 56. Kf4 {[%clk 0:00:05]}  Nf7 {[%clk 0:00:15]} 57. Kxg4 {[%clk 0:00:06]}  Ne5+ {[%clk 0:00:15]} 58. Kf4 {[%clk 0:00:06]}  Nxc6 {[%clk 0:00:16]} 59. g4 {[%clk 0:00:07]}  Ne5 {[%clk 0:00:15]} 60. g5 {[%clk 0:00:08]}  Bg7 {[%clk 0:00:14]} 61. Ke4 {[%clk 0:00:08]}  Nf7 {[%clk 0:00:14]} 62. Kd5 {[%clk 0:00:09]}  Nxg5 {[%clk 0:00:14]} 63. Kc4 {[%clk 0:00:09]}  Kf5 {[%clk 0:00:14]} 64. Kd5 {[%clk 0:00:10]}  Ne6 {[%clk 0:00:14]} 65. Kd6 {[%clk 0:00:11]}  Be5+ {[%clk 0:00:14]} 66. Kd5 {[%clk 0:00:12]}  Nf4+ {[%clk 0:00:13]} 67. Kc5 {[%clk 0:00:12]}  Ke6 {[%clk 0:00:14]} 68. Kc6 {[%clk 0:00:13]}  Bd6 {[%clk 0:00:13]} 69. Kb7 {[%clk 0:00:13]}  Kd7 {[%clk 0:00:13]} 70. Kb6 {[%clk 0:00:13]}  Be5 {[%clk 0:00:12]} 71. Kb7 {[%clk 0:00:14]}  Nd5 {[%clk 0:00:11]} 72. Ka8 {[%clk 0:00:14]}  Kc7 {[%clk 0:00:11]} 73. Ka7 {[%clk 0:00:15]}  Nb6 {[%clk 0:00:10]} 74. Ka6 {[%clk 0:00:15]}  Kc6 {[%clk 0:00:10]} 75. Ka7 {[%clk 0:00:16]}  Bd4 {[%clk 0:00:10]} 76. Ka6 {[%clk 0:00:16]}  Nc8 {[%clk 0:00:08]} 77. Ka5 {[%clk 0:00:17]}  Nd6 {[%clk 0:00:07]} 78. Ka6 {[%clk 0:00:17]}  Nb7 {[%clk 0:00:06]} 1/2-1/2


[Site "https://www.chess.com"]

[Event "Titled Tuesday Blitz March 29 Late 2022"]
[White "Aldokhin, Ivan"]
[Black "Hoffmann, Asa"]
[WhiteFideId "24115720"]
[BlackFideId "2001470"]
[WhiteElo "2231"]
[BlackElo "2117"]
[Result "1-0"]
[Round "04"]
[TimeControl "180+1"]
[Date "2022.03.30"]
[WhiteClock "0:00:53"]
[BlackClock "0:00:47"]

1. e4 {[%clk 0:03:00]}  d6 {[%clk 0:02:59]} 2. Nc3 {[%clk 0:02:59]}  c6 {[%clk 0:02:55]} 3. d4 {[%clk 0:02:59]}  Nf6 {[%clk 0:02:54]} 4. Bg5 {[%clk 0:02:59]}  Nbd7 {[%clk 0:02:53]} 5. f4 {[%clk 0:02:59]}  Qa5 {[%clk 0:02:50]} 6. Bd3 {[%clk 0:02:56]}  e5 {[%clk 0:02:49]} 7. Nf3 {[%clk 0:02:54]}  Be7 {[%clk 0:02:46]} 8. Qd2 {[%clk 0:02:47]}  h6 {[%clk 0:02:43]} 9. Bh4 {[%clk 0:02:45]}  exf4 {[%clk 0:02:42]} 10. O-O-O {[%clk 0:02:33]}  g5 {[%clk 0:02:41]} 11. Bf2 {[%clk 0:02:33]}  Nb6 {[%clk 0:02:27]} 12. Kb1 {[%clk 0:02:26]}  Bg4 {[%clk 0:02:19]} 13. h4 {[%clk 0:02:04]}  Bxf3 {[%clk 0:02:08]} 14. gxf3 {[%clk 0:02:04]}  Nh5 {[%clk 0:02:04]} 15. hxg5 {[%clk 0:02:02]}  Qxg5 {[%clk 0:02:00]} 16. d5 {[%clk 0:01:46]}  c5 {[%clk 0:01:56]} 17. e5 {[%clk 0:01:42]}  O-O-O {[%clk 0:01:47]} 18. exd6 {[%clk 0:01:34]}  Bxd6 {[%clk 0:01:42]} 19. Ne4 {[%clk 0:01:33]}  Qe5 {[%clk 0:01:39]} 20. Qa5 {[%clk 0:01:21]}  Kb8 {[%clk 0:01:31]} 21. Rhe1 {[%clk 0:01:12]}  Qxd5 {[%clk 0:01:09]} 22. Nc3 {[%clk 0:01:03]}  Qc6 {[%clk 0:01:07]} 23. Be4 {[%clk 0:01:02]}  Qc8 {[%clk 0:01:03]} 24. Nb5 {[%clk 0:01:01]}  a6 {[%clk 0:00:56]} 25. Nxd6 {[%clk 0:00:55]}  Qc7 {[%clk 0:00:54]} 26. Nxb7 {[%clk 0:00:56]}  Rxd1+ {[%clk 0:00:47]} 27. Rxd1 {[%clk 0:00:56]}  Ng3 {[%clk 0:00:47]} 28. Nxc5 {[%clk 0:00:53]} 1-0


[Site "https://www.chess.com"]

[Event "Titled Tuesday Blitz March 29 Late 2022"]
[White "Aravindh, Chithambaram VR."]
[Black "Harshavardhan G B"]
[WhiteFideId "5072786"]
[BlackFideId "25059009"]
[WhiteElo "2561"]
[BlackElo "1831"]
[Result "1-0"]
[Round "04"]
[TimeControl "180+1"]
[Date "2022.03.29"]
[WhiteClock "0:00:06"]
[BlackClock "0:00:10"]

1. b3 {[%clk 0:03:00]}  e5 {[%clk 0:02:57]} 2. Bb2 {[%clk 0:03:01]}  Nc6 {[%clk 0:02:58]} 3. e3 {[%clk 0:03:01]}  g6 {[%clk 0:02:57]} 4. c4 {[%clk 0:02:57]}  Bg7 {[%clk 0:02:57]} 5. Nc3 {[%clk 0:02:56]}  Nge7 {[%clk 0:02:57]} 6. Nf3 {[%clk 0:02:50]}  d6 {[%clk 0:02:57]} 7. Be2 {[%clk 0:02:47]}  O-O {[%clk 0:02:56]} 8. d4 {[%clk 0:02:46]}  exd4 {[%clk 0:02:52]} 9. exd4 {[%clk 0:02:44]}  Nf5 {[%clk 0:02:51]} 10. Nd5 {[%clk 0:02:33]}  Be6 {[%clk 0:02:29]} 11. Ne3 {[%clk 0:01:55]}  Re8 {[%clk 0:02:22]} 12. O-O {[%clk 0:01:49]}  Nxe3 {[%clk 0:02:10]} 13. fxe3 {[%clk 0:01:49]}  Bf5 {[%clk 0:02:10]} 14. Bc1 {[%clk 0:01:47]}  Bh6 {[%clk 0:02:07]} 15. d5 {[%clk 0:01:43]}  Ne5 {[%clk 0:01:58]} 16. Nd4 {[%clk 0:01:41]}  Be4 {[%clk 0:01:58]} 17. Rf4 {[%clk 0:01:32]}  f5 {[%clk 0:01:53]} 18. Ne6 {[%clk 0:01:23]}  Qe7 {[%clk 0:01:50]} 19. Bb2 {[%clk 0:01:23]}  c6 {[%clk 0:01:44]} 20. Qd4 {[%clk 0:01:16]}  cxd5 {[%clk 0:01:31]} 21. cxd5 {[%clk 0:01:09]}  Bxd5 {[%clk 0:01:30]} 22. Nc7 {[%clk 0:01:07]}  Qxc7 {[%clk 0:01:26]} 23. Qxd5+ {[%clk 0:01:07]}  Qf7 {[%clk 0:01:25]} 24. Qd2 {[%clk 0:01:06]}  d5 {[%clk 0:01:06]} 25. Rd1 {[%clk 0:01:03]}  Rad8 {[%clk 0:01:03]} 26. h3 {[%clk 0:01:03]}  Re7 {[%clk 0:00:59]} 27. Qd4 {[%clk 0:01:01]}  Rde8 {[%clk 0:00:56]} 28. Qxd5 {[%clk 0:00:49]}  Qxd5 {[%clk 0:00:55]} 29. Rxd5 {[%clk 0:00:49]}  Nf7 {[%clk 0:00:52]} 30. Bc4 {[%clk 0:00:49]}  Bxf4 {[%clk 0:00:45]} 31. exf4 {[%clk 0:00:50]}  a6 {[%clk 0:00:45]} 32. a4 {[%clk 0:00:50]}  Kf8 {[%clk 0:00:44]} 33. Ba3 {[%clk 0:00:49]}  Kg7 {[%clk 0:00:42]} 34. Bxe7 {[%clk 0:00:44]}  Rxe7 {[%clk 0:00:43]} 35. a5 {[%clk 0:00:45]}  Rc7 {[%clk 0:00:42]} 36. Kf2 {[%clk 0:00:44]}  Kf6 {[%clk 0:00:41]} 37. Ke3 {[%clk 0:00:44]}  Ke7 {[%clk 0:00:40]} 38. Kd4 {[%clk 0:00:43]}  Nd6 {[%clk 0:00:40]} 39. Re5+ {[%clk 0:00:43]}  Kd7 {[%clk 0:00:38]} 40. Be6+ {[%clk 0:00:41]}  Kd8 {[%clk 0:00:36]} 41. Rd5 {[%clk 0:00:34]}  Ke7 {[%clk 0:00:33]} 42. Bg8 {[%clk 0:00:30]}  Ne8 {[%clk 0:00:30]} 43. Re5+ {[%clk 0:00:21]}  Kd8 {[%clk 0:00:26]} 44. g4 {[%clk 0:00:14]}  Nf6 {[%clk 0:00:24]} 45. Be6 {[%clk 0:00:14]}  fxg4 {[%clk 0:00:22]} 46. hxg4 {[%clk 0:00:15]}  Rc1 {[%clk 0:00:20]} 47. g5 {[%clk 0:00:14]}  Nh5 {[%clk 0:00:20]} 48. f5 {[%clk 0:00:11]}  gxf5 {[%clk 0:00:20]} 49. Bxf5 {[%clk 0:00:12]}  Rc7 {[%clk 0:00:17]} 50. Bg4 {[%clk 0:00:05]}  Nf4 {[%clk 0:00:16]} 51. Bf3 {[%clk 0:00:06]}  Rd7+ {[%clk 0:00:14]} 52. Ke4 {[%clk 0:00:05]}  Ng6 {[%clk 0:00:13]} 53. Re6 {[%clk 0:00:05]}  Re7 {[%clk 0:00:13]} 54. Rxe7 {[%clk 0:00:05]}  Kxe7 {[%clk 0:00:13]} 55. Kd4 {[%clk 0:00:04]}  Nf4 {[%clk 0:00:11]} 56. Bxb7 {[%clk 0:00:04]}  Ne6+ {[%clk 0:00:11]} 57. Ke5 {[%clk 0:00:05]}  Nxg5 {[%clk 0:00:11]} 58. Bxa6 {[%clk 0:00:05]}  Kd7 {[%clk 0:00:11]} 59. Bc4 {[%clk 0:00:04]}  Kc7 {[%clk 0:00:11]} 60. b4 {[%clk 0:00:04]}  Nf3+ {[%clk 0:00:11]} 61. Kd5 {[%clk 0:00:04]}  h5 {[%clk 0:00:11]} 62. Be2 {[%clk 0:00:04]}  Ne1 {[%clk 0:00:10]} 63. Bxh5 {[%clk 0:00:04]}  Nc2 {[%clk 0:00:10]} 64. Kc5 {[%clk 0:00:04]}  Kb7 {[%clk 0:00:09]} 65. b5 {[%clk 0:00:05]}  Ka7 {[%clk 0:00:09]} 66. Bf3 {[%clk 0:00:05]}  Na3 {[%clk 0:00:09]} 67. Be4 {[%clk 0:00:04]}  Kb8 {[%clk 0:00:06]} 68. Kb4 {[%clk 0:00:04]}  Nxb5 {[%clk 0:00:06]} 69. Kxb5 {[%clk 0:00:05]}  Ka7 {[%clk 0:00:07]} 70. a6 {[%clk 0:00:05]}  Kb8 {[%clk 0:00:08]} 71. Kb6 {[%clk 0:00:06]}  Kc8 {[%clk 0:00:08]} 72. a7 {[%clk 0:00:06]}  Kd7 {[%clk 0:00:09]} 73. a8=Q {[%clk 0:00:06]}  Kd6 {[%clk 0:00:09]} 74. Qd5+ {[%clk 0:00:06]}  Ke7 {[%clk 0:00:09]} 75. Qc6 {[%clk 0:00:07]}  Kf7 {[%clk 0:00:09]} 76. Qd6 {[%clk 0:00:07]}  Kg7 {[%clk 0:00:10]} 77. Qg6+ {[%clk 0:00:07]}  Kf8 {[%clk 0:00:10]} 78. Qh7 {[%clk 0:00:07]}  Ke8 {[%clk 0:00:09]} 79. Bf5 {[%clk 0:00:07]}  Kd8 {[%clk 0:00:10]} 80. Qd7# {[%clk 0:00:06]} 1-0


[Site "https://www.chess.com"]